Cogmind - Beta 16.1 @@@ ROGUE MODE // 2026.02.05 @ 17:15:55 Player: BlobtheGreat Result: Destroyed by Enhanced Grunt with Neutron Cannon Performance ------------- Evolutions (3) 1500 Regions Visited (11) 2200 Robots Destroyed (162) 810 Value Destroyed (4646) 4646 Prototype IDs (217) 4340 Alien Tech Used (0) 0 Bonus (3553) 3553 TOTAL SCORE: 17049 Bonus ------- High Alert Combat Kills 58 Follower Combat Kills 195 Met Data Miner 300 Used Data Conduit 3000 Cogmind --------- Core Integrity 0/700 Matter 300/300 Energy 87/100 System Corruption 4% Temperature Cool (0) Movement Walking (200) Ox1 Location -7/Data Miner Parts ------- > --- POWER (1) -------- (None) > --- PROPULSION (4) --- Improved Titanium Leg > --- UTILITY (5) ------ Large Storage Unit Improved Signal Interpreter Core Analyzer Microactuators > --- WEAPON (3) ------- Powered Hammer Katana > --- INVENTORY (15) --- Advanced Heat Sink High-capacity Matter Pod (200) Improved Sensor Array Improved Melee Analysis Suite Actuator Array Transmission Jammer Improved Shield Generator Enhanced Autogun Enhanced Autogun Mini Grenade Launcher Heavy Missile Launcher Datajack Powered Hammer Katana DRS Beacon (Ready) Peak State ------------ > --- POWER ------------ Light Angular Momentum Engine > --- PROPULSION ------- Carbon-fiber Leg Improved Titanium Leg Improved Titanium Leg Makeshift Leg > --- UTILITY ---------- Large Storage Unit Improved Signal Interpreter Core Analyzer Improved Medium Armor Plating Improved Shield Generator > --- WEAPON ----------- Heavy Missile Launcher Katana Katana > --- INVENTORY -------- Improved Titanium Leg High-capacity Matter Pod Improved Sensor Array Improved Melee Analysis Suite Microactuators Actuator Array Transmission Jammer Hardened Medium Armor Plating Enhanced Autogun Enhanced Autogun Mini Grenade Launcher Datajack Powered Hammer Powered Hammer Katana [Rating: 50] Favorites ----------- Power Heavy Ion Engine Engine Heavy Ion Engine Power Core Light Nuclear Core Propulsion Armored Treads Treads Armored Treads Leg Improved Titanium Leg Wheel Armored Huge Wheel Hover Unit Cooled Airjet Flight Unit Improved Flight Unit Utility Large Storage Unit Device Heat Sink Storage Large Storage Unit Processor Improved Signal Interpreter Protection Hardened Light Armor Plating Weapon Katana Energy Gun Medium Laser Energy Cannon Advanced Beam Cannon Ballistic Gun Minigun Launcher Mini Grenade Launcher Impact Weapon Powered Hammer Slashing Weapon Katana Build | -11 -10 -10 -9 -9 -9 -8 -8 -7 -7 -7 -7 ------- Run | Yrd Mat Min Mat Min Exi Min Mat Fac Low Low Dat Slots Evolved 6 | . . . 2 . . . 2 2 . . . Power . | . . . . . . . . . . . . Propulsion 2 | . . . 1 . . . . 1 . . . Utility 3 | . . . 1 . . . 2 . . . . Weapon 1 | . . . . . . . . 1 . . . Parts Attached 90 | 7 5 1 17 2 . 2 29 18 8 . 1 Power 9 | 1 . 1 2 . . . 1 4 . . . Engine 8 | 1 . 1 2 . . . . 4 . . . Core 1 | . . . . . . . 1 . . . . Reactor . | . . . . . . . . . . . . Propulsion 29 | 2 . . 4 . . 1 12 7 3 . . Treads 13 | 2 . . 4 . . 1 6 . . . . Leg 12 | . . . . . . . 4 5 3 . . Wheel 1 | . . . . . . . . 1 . . . Hover 1 | . . . . . . . . 1 . . . Flight 2 | . . . . . . . 2 . . . . Utility 29 | 2 2 . 6 2 . 1 7 6 3 . . Device 9 | 1 . . . 1 . . 3 2 2 . . Storage 5 | 1 1 . 2 . . . 1 . . . . Processor 3 | . . . . . . 1 . 2 . . . Hackware . | . . . . . . . . . . . . Protection 12 | . 1 . 4 1 . . 3 2 1 . . Artifact . | . . . . . . . . . . . . Weapon 23 | 2 3 . 5 . . . 9 1 2 . 1 Energy Gun 4 | 1 1 . 1 . . . 1 . . . . Energy Cannon 1 | . . . 1 . . . . . . . . Ballistic Gun 11 | 1 2 . 3 . . . 5 . . . . Ballistic Cannon . | . . . . . . . . . . . . Launcher 2 | . . . . . . . 1 . 1 . . Special Weapon . | . . . . . . . . . . . . Impact Weapon 2 | . . . . . . . . . 1 . 1 Slashing Weapon 3 | . . . . . . . 2 1 . . . Piercing Weapon . | . . . . . . . . . . . . Special Melee Weapon . | . . . . . . . . . . . . Unidentified Prototypes 9 | . . . 3 . . . 5 1 . . . Parts Lost 20 | . . 1 . . . . 4 5 4 1 5 Power 4 | . . 1 . . . . 1 1 . . 1 Propulsion 9 | . . . . . . . 1 2 3 1 2 Utility 6 | . . . . . . . 2 2 1 . 1 Weapon 1 | . . . . . . . . . . . 1 Highest Loss Streak 5 | . . 1 . . . . 1 2 3 1 5 To Critical Strikes . | . . . . . . . . . . . . Average Backups 13 | 3 9 9 13 15 15 14 14 14 14 14 14 Power . | . 1 . . . . . . . . . . Propulsion 2 | 1 4 4 2 2 2 2 2 1 . . . Utility 5 | . 1 2 6 7 7 6 5 5 6 7 7 Weapon 4 | . 1 2 3 5 5 5 5 6 6 6 6 Tool/Special . | . . . . . . . . . . . . Unused Backups 24 | 1 2 1 5 . . 1 6 3 . . 5 Power . | . . . . . . . . . . . . Propulsion 7 | . 2 . 2 . . . 2 1 . . . Utility 8 | 1 . 1 . . . 1 . 2 . . 3 Weapon 8 | . . . 3 . . . 4 . . . 1 Tool/Special 1 | . . . . . . . . . . . 1 Average Slot Usage (%) 96 | . 100 90 98 100 81 99 94 96 99 96 91 Engine 7 | . 14 5 11 11 11 11 3 4 7 7 7 Treads 17 | . 28 28 33 33 33 33 22 . . . . Leg 12 | . . . . . . . 4 28 29 27 22 Device 8 | . 12 . . 7 11 10 19 7 7 7 7 Storage 9 | . 14 14 11 11 11 11 9 7 7 7 7 Processor 5 | . . . . . . . . 14 15 15 15 Protection 10 | . 1 14 21 14 11 11 11 7 6 7 7 Energy Gun 1 | . 17 . . . . . . . . . . Ballistic Gun 11 | . 10 28 19 22 4 22 16 . . . . Slashing Weapon 9 | . . . . . . . 1 22 22 23 20 Peak Build Rating 50 | 7 8 8 25 25 24 26 34 49 50 46 45 Average Rating 29 | 6 7 7 22 24 19 24 26 43 46 44 43 On Entrance 24 | 1 7 8 7 25 24 24 25 33 49 45 44 Avg Prop Armor Cover (%) 6 | . . . . . . . . 6 . . . Naked Turns . | . . . . . . . . . . . . Heaviest Build 58 | 14 21 20 45 44 42 42 47 58 47 45 45 Greatest Support 80 | 40 40 40 60 60 60 60 60 80 75 65 55 Greatest Overweight (x) 2 | . . . . . . . 2 1 1 . . Average Overweight (x) . | . . . . . . . . . . . . Largest Inventory Capacity 15 | 8 10 10 15 15 15 15 15 15 15 15 15 Average Capacity 14 | 7 9 10 14 15 15 15 15 15 15 15 15 Most Carried 15 | 5 10 10 15 15 15 15 15 15 15 15 15 Average Carried 13 | 3 9 9 13 15 15 14 14 14 14 15 15 Final Capacity 15 | 8 10 10 15 15 15 15 15 15 15 15 15 Final Carried 15 | 5 10 9 15 15 15 15 15 15 15 15 15 Class Distribution -------------------- 85% | Mutant 7% | Scavenger-Mutant 7% | Gladiator Dominant Class ---------------- Mutant | -10/Materials Mutant | -10/Mines Mutant | -9/Materials Mutant | -9/Mines Mutant | -9/Exiles Mutant | -8/Mines Scavenger-Mutant | -8/Materials Mutant | -7/Factory Mutant | -7/Lower Caves Mutant | -7/Lower Caves Mutant | -7/Data Miner Resources | -11 -10 -10 -9 -9 -9 -8 -8 -7 -7 -7 -7 ----------- Run | Yrd Mat Min Mat Min Exi Min Mat Fac Low Low Dat Matter Collected 3828 | 278 101 43 1131 180 . 121 949 636 319 65 5 Remotely . | . . . . . . . . . . . . Salvage Created 6048 | 123 338 75 1265 169 . 106 1802 1453 597 93 27 Parts 352 | 13 19 3 82 10 . 5 104 89 22 4 1 Haulers Intercepted 12 | . 1 . 5 . . . 5 1 . . . Recyclers Shooed 12 | 1 3 . 2 . . 1 4 1 . . . Parts Field Recycled . | . . . . . . . . . . . . Retrieved Matter . | . . . . . . . . . . . . Parts Self-Destructed 21 | . . . . . . . . . 17 4 . Prevented . | . . . . . . . . . . . . Parts Restored . | . . . . . . . . . . . . Kills | -11 -10 -10 -9 -9 -9 -8 -8 -7 -7 -7 -7 ------- Run | Yrd Mat Min Mat Min Exi Min Mat Fac Low Low Dat Combat Hostiles Destroyed 114 | . 3 5 23 6 . 4 30 28 14 1 . Melee 28 | . . . . . . . . 19 8 1 . Guns 66 | . 3 5 21 6 . 4 27 . . . . Cannons 2 | . . . 2 . . . . . . . . AOE 18 | . . . . . . . 3 9 6 . . Classes Destroyed 17 | 2 5 2 4 . . 1 1 1 . 1 . Worker 7 | . 1 . 1 . . . 1 4 . . . Builder 2 | . . . 1 . . . . 1 . . . Tunneler 4 | 4 . . . . . . . . . . . Hauler 12 | . 1 . 5 . . . 5 1 . . . Recycler 11 | 1 3 . . . . . 4 3 . . . Minesweeper 1 | . . . . . . . . . . 1 . Operator 4 | . 1 . . . . . 2 1 . . . Watcher 7 | . 1 . 1 . . . 2 3 . . . Swarmer 34 | . 3 3 3 3 . 3 8 8 3 . . Grunt 46 | . . . 11 3 . . 13 12 7 . . Brawler 3 | . . . . . . . 1 . 2 . . Duelist 3 | . . . 2 . . . . 1 . . . Sentry 21 | . . . 7 . . . 8 3 2 1 . Demolisher 1 | . . 1 . . . . . . . . . Hunter 1 | . . . . . . 1 . . . . . Programmer 4 | . . . . . . . . 4 . . . Assembled 1 | . . 1 . . . . . . . . . Best Kill Streak 9 | 4 7 3 5 3 . 2 9 8 6 1 1 Combat Bots Only 7 | . 3 3 4 3 . 2 7 6 6 1 . Max Kills in Single Turn 3 | 1 1 1 2 1 . 1 3 3 2 1 1 Gunslinging 1 | . . . 1 . . . 1 . . . . Exploded 3 | . . . . . . . 2 3 2 . . Melee 1 | . . . . . . . . 1 1 1 . Uniques/NPCs Destroyed 1 | . . . . . . . . . . . 1 Data Miner (-7/Data Miner) Combat | -11 -10 -10 -9 -9 -9 -8 -8 -7 -7 -7 -7 -------- Run | Yrd Mat Min Mat Min Exi Min Mat Fac Low Low Dat Hostile Shots Fired 578 | . 8 13 86 25 . 15 140 195 59 24 13 Missed 172 | . 2 4 20 8 . 5 32 65 22 13 1 Hits 406 | . 6 9 66 17 . 10 108 130 37 11 12 Melee 9 | . . . 2 . . . . 6 1 . . Projectile 397 | . 6 9 64 17 . 10 108 124 36 11 12 AOE 6 | . . 4 . . . . . 2 . . . Critical Strikes 13 | . . 1 4 2 . . 5 1 . . . Damage Taken 6462 | . 50 222 878 221 . 123 1517 2273 536 79 563 Core 970 | . . 60 67 25 . . 115 509 42 11 141 Absorbed by Shields 19 | . . . . . . . . . 19 . . Ignored by Resistances 14 | . . . . . . . . 14 . . . Core Remaining (%) 83 | 100 . 76 . . . 77 79 . . . . Volleys Fired 286 | 8 24 14 84 19 . 9 108 13 7 . . Largest 2 | 2 2 2 2 2 . 2 2 1 1 . . Hottest 93 | 70 90 40 93 50 . 50 50 30 39 . . Shots Fired 552 | 16 50 28 168 38 . 19 213 13 7 . . Gun 515 | 16 50 28 154 38 . 19 210 . . . . Cannon 14 | . . . 14 . . . . . . . . Launcher 23 | . . . . . . . 3 13 7 . . Special . | . . . . . . . . . . . . Kinetic 478 | 8 21 28 154 38 . 19 210 . . . . Thermal 44 | 8 22 . 14 . . . . . . . . Explosive 23 | . . . . . . . 3 13 7 . . Electromagnetic 7 | . 7 . . . . . . . . . . Robot Hit Streak 28 | 11 12 6 5 6 . 7 28 2 8 . . Robot Miss Streak 5 | 1 3 4 4 4 . 2 5 1 . . . Penetration Max . | . . . . . . . . . . . . Secondary Targets 10 | . 1 . 4 . . 1 4 . . . . Max Gunslinging Chain 1 | . 1 . 1 . . 1 1 . . . . Shots Hit Robots 473 | 11 33 15 97 22 . 12 155 83 27 4 14 Core Hits 247 | 6 18 11 39 9 . 6 72 55 24 2 5 Critical Kills . | . . . . . . . . . . . . Critical Parts Destroyed 3 | . . 1 1 . . . . . . . 1 Critical Strikes 15 | 1 3 1 1 . . . . 3 2 1 3 Burn 4 | 1 3 . . . . . . . . . . Destroy 2 | . . 1 1 . . . . . . . . Smash 1 | . . . . . . . . . . . 1 Sever 8 | . . . . . . . . 3 2 1 2 Melee Attacks 210 | . . . . . . . 2 126 36 20 26 Impact 5 | . . . . . . . . . . . 5 Slashing 205 | . . . . . . . 2 126 36 20 21 Piercing . | . . . . . . . . . . . . Sneak Attacks 12 | . . . . . . . 1 9 . 1 1 Combat Hostiles . | . . . . . . . . . . . . Follow-up Attacks 28 | . . . . . . . . 18 5 1 4 Damage Inflicted 11960 | 125 410 119 1760 430 . 252 2885 3867 1459 162 491 Guns 5300 | 125 379 119 1623 382 . 186 2486 . . . . Cannons 132 | . . . 132 . . . . . . . . Explosions 2113 | . 30 . . . . . 304 942 837 . . Melee 4260 | . . . . . . . 60 2925 622 162 491 Ramming 155 | . 1 . 5 48 . 66 35 . . . . Kinetic 4944 | 37 111 119 1623 382 . 186 2486 . . . . Thermal 430 | 88 210 . 132 . . . . . . . . Explosive 2083 | . . . . . . . 304 942 837 . . Electromagnetic 88 | . 88 . . . . . . . . . . Impact 161 | . . . . . . . . . . . 161 Slashing 4099 | . . . . . . . 60 2925 622 162 330 Piercing . | . . . . . . . . . . . . Highest Corruption 4 | . 2 2 2 2 2 2 . 4 4 4 4 Average Corruption 3 | . 1 2 2 2 2 2 . 3 4 4 4 Corruption Purged . | . . . . . . . . . . . . Corruption Blocked . | . . . . . . . . . . . . Effects 150 | . 9 11 1 16 3 14 . 25 25 40 6 Message Errors 36 | . . 4 . 7 . 1 . 6 4 13 1 Matter Fused 37 | . 3 1 . 3 1 6 . 8 8 7 . Heat Flow Errors 22 | . 1 2 . . 1 2 . 2 6 6 2 Energy Discharges 23 | . 2 1 . 4 . 1 . 5 1 7 2 Parts Rejected 1 | . . . . . . . . . 1 . . Parts Fused 1 | . . . . . . . . . 1 . . Data Loss (minor) 18 | . 1 2 1 1 1 1 . 2 3 6 . Data Loss (major) 8 | . . 1 . 1 . 2 . 2 1 . 1 Misfires 3 | . 2 . . . . 1 . . . . . Alerts 1 | . . . . . . . . . . 1 . Overload Shots . | . . . . . . . . . . . . Overflow Damage 278 | . . . . . . . . 125 38 32 83 Projectiles . | . . . . . . . . . . . . Explosions 86 | . . . . . . . . 57 29 . . Melee 192 | . . . . . . . . 68 9 32 83 Knockbacks . | . . . . . . . . . . . . Impact . | . . . . . . . . . . . . Kinetic . | . . . . . . . . . . . . Secondary . | . . . . . . . . . . . . Self-Inflicted Damage 207 | . . . . . . . . 174 33 . . Shots 5 | . . . . . . . . 4 1 . . Rammed 25 | . 1 . 2 8 . 8 6 . . . . Targets Rammed 26 | . 1 . 3 8 . 8 6 . . . . Kicked . | . . . . . . . . . . . . Crushed 1 | . . . 1 . . . . . . . . Highest Temperature 328 | 110 236 213 328 164 94 185 29 264 145 265 158 Average Temperature 79 | 56 60 75 78 81 54 82 10 98 60 128 72 Received Heat Transfer 1731 | . . . 372 123 . . 648 465 111 12 . Effects 2 | . . . 2 . . . . . . . . Interference 2 | . . . 2 . . . . . . . . Siege Activations . | . . . . . . . . . . . . Martial Activations . | . . . . . . . . . . . . Shielding Activations . | . . . . . . . . . . . . Robots Disrupted . | . . . . . . . . . . . . Combat Hostiles . | . . . . . . . . . . . . Robots Corrupted . | . . . . . . . . . . . . Combat Hostiles . | . . . . . . . . . . . . Parts Fried . | . . . . . . . . . . . . Impact Corruptions 2 | . . . . . . . . . . . 2 Robots Melted . | . . . . . . . . . . . . Combat Hostiles . | . . . . . . . . . . . . Parts Melted 3 | 2 . . . . . . . . 1 . . Heat Transferred 1345 | 333 790 . 222 . . . . . . . . Parts Sabotaged . | . . . . . . . . . . . . Parts Stolen . | . . . . . . . . . . . . Parts Stripped . | . . . . . . . . . . . . Power Chain Reactions 1 | . 1 . . . . . . . . . . Alert | -11 -10 -10 -9 -9 -9 -8 -8 -7 -7 -7 -7 ------- Run | Yrd Mat Min Mat Min Exi Min Mat Fac Low Low Dat Maximum Alert Level 2 | . . . 2 . . . 2 2 . . . Low Security (%) 76 | 100 100 100 77 100 . 100 51 57 . . . Level 1 17 | . . . 12 . . . 29 41 . . . Level 2 5 | . . . 10 . . . 19 . . . . Level 3 . | . . . . . . . . . . . . Level 4 . | . . . . . . . . . . . . Level 5 . | . . . . . . . . . . . . High Security . | . . . . . . . . . . . . Max Security . | . . . . . . . . . . . . Peak Influence 462 | 15 79 62 462 172 . 80 447 407 . . . Initial 172 | . . 22 . 172 . . 2 167 . . . Average 121 | 2 9 7 162 78 . 11 219 166 . . . Influence Increases 3667 | 25 142 100 943 170 . 145 894 896 292 40 20 Destroy 0b10 Robot/C 2420 | . 60 80 600 120 . 80 600 560 280 20 20 Destroy 0b10 Robot/NC 255 | 25 35 . 55 . . . 70 65 . 5 . Destroy Leader 532 | . 14 20 176 20 . 20 144 128 10 . . Allied During Kill 30 | . . . 28 . . . . . 2 . . Successful Hack 44 | . 15 . 6 . . . 12 11 . . . Disable Machine 165 | . 15 . 75 . . 15 15 45 . . . Destroy Structure 71 | . 3 . 3 . . . 23 42 . . . Lose Combat Pursuer 150 | . . . . 30 . 30 30 45 . 15 . Influence Decreases 3667 | 25 85 157 500 613 . 137 533 859 641 97 20 Entered New Map 677 | . . 35 . 271 . . 6 202 151 12 . Time Decay 2770 | 25 85 122 460 342 . 137 497 587 410 85 20 Lost Part 120 | . . . . . . . 30 50 40 . . Lost Ally 100 | . . . 40 . . . . 20 40 . . Squads Dispatched 11 | . . . 5 . . . . 6 . . . Investigation . | . . . . . . . . . . . . Extermination 4 | . . . . . . . . 4 . . . Reinforcement 7 | . . . 5 . . . . 2 . . . Assault . | . . . . . . . . . . . . Garrison . | . . . . . . . . . . . . Intercept . | . . . . . . . . . . . . Searches Triggered . | . . . . . . . . . . . . Construction Impeded 1 | . . . . . . . . 1 . . . Haulers Reinforced 1 | . . . . . . . . 1 . . . Active Scanning Responses . | . . . . . . . . . . . . Cargo Convoy Interrupts . | . . . . . . . . . . . . Stealth | -11 -10 -10 -9 -9 -9 -8 -8 -7 -7 -7 -7 --------- Run | Yrd Mat Min Mat Min Exi Min Mat Fac Low Low Dat Distress Signals 8 | . . . 3 . . . 3 2 . . . Communications Jammed . | . . . . . . . . . . . . Distress Signals . | . . . . . . . . . . . . Times Spotted 178 | . 7 5 41 9 . 6 45 45 14 2 4 Peak Tracking Total 7 | . 4 3 5 3 . 4 7 6 7 1 3 Tactical Retreats 8 | . . . . 2 . 1 1 2 . 1 1 Traps | -11 -10 -10 -9 -9 -9 -8 -8 -7 -7 -7 -7 ------- Run | Yrd Mat Min Mat Min Exi Min Mat Fac Low Low Dat Traps Triggered 7 | . 3 . 1 . . . 1 2 . . . Indirectly . | . . . . . . . . . . . . Trap Hack Attempts . | . . . . . . . . . . . . Triggered . | . . . . . . . . . . . . Disarmed . | . . . . . . . . . . . . Reprogrammed . | . . . . . . . . . . . . Reused . | . . . . . . . . . . . . Traps Extracted . | . . . . . . . . . . . . Installed . | . . . . . . . . . . . . Triggered . | . . . . . . . . . . . . Machines | -11 -10 -10 -9 -9 -9 -8 -8 -7 -7 -7 -7 ---------- Run | Yrd Mat Min Mat Min Exi Min Mat Fac Low Low Dat Machines Disabled 12 | . 1 . 5 1 . 1 1 3 . . . Max in Single Turn 1 | . 1 . 1 1 . 1 1 1 . . . Garrison Access 1 | . . . . . . . 1 . . . . Machines Repaired . | . . . . . . . . . . . . Machines Dismantled . | . . . . . . . . . . . . Machines Sabotaged . | . . . . . . . . . . . . Overloaded Fab Kills . | . . . . . . . . . . . . Hacking | -11 -10 -10 -9 -9 -9 -8 -8 -7 -7 -7 -7 --------- Run | Yrd Mat Min Mat Min Exi Min Mat Fac Low Low Dat Machines Accessed 32 | . 3 . 5 . 1 . 10 7 1 1 4 Terminals 19 | . 3 . 4 . . . 8 4 . . . Fabricators 2 | . . . . . . . . 2 . . . Repair Stations . | . . . . . . . . . . . . Recycling Units 1 | . . . . . . . . 1 . . . Scanalyzers 2 | . . . 1 . . . 1 . . . . Garrison Access 1 | . . . . . . . 1 . . . . Total Hacks 93 | . 8 . 13 . 1 . 22 19 1 1 28 Successful 60 | . 5 . 5 . 1 . 10 9 1 1 28 Failed 33 | . 3 . 8 . . . 12 10 . . . Catastrophic 6 | . . . 1 . . . 4 1 . . . Database Lockouts . | . . . . . . . . . . . . Manual 45 | . 8 . 11 . . . 12 14 . . . Terminals 45 | . 8 . 11 . . . 17 9 . . . Fabricators 9 | . . . . . . . . 9 . . . Repair Stations . | . . . . . . . . . . . . Recycling Units 1 | . . . . . . . . 1 . . . Scanalyzers 5 | . . . 2 . . . 3 . . . . Garrison Access 2 | . . . . . . . 2 . . . . Terminal Hacks 40 | . 2 . . . 1 . 5 2 1 1 28 Record 12 | . . . . . 1 . . . . . 11 Part Schematic 9 | . . . . . . . . . . . 9 Robot Schematic 5 | . . . . . . . . . . . 5 Robot Analysis 4 | . 2 . . . . . 2 . . . . Prototype ID Bank 4 | . . . . . . . 1 . . . 3 Open Door 2 | . . . . . . . . . 1 1 . Branch Access Points 3 | . . . . . . . 2 1 . . . Hauler Manifests 1 | . . . . . . . . 1 . . . Fabricator Hacks 2 | . . . . . . . . 2 . . . Network Status 2 | . . . . . . . . 2 . . . Repair Station Hacks . | . . . . . . . . . . . . Recycling Unit Hacks . | . . . . . . . . . . . . Scanalyzer 4 | . . . 1 . . . 3 . . . . Retrieve Study 4 | . . . 1 . . . 3 . . . . Garrison Access Hacks 1 | . . . . . . . 1 . . . . Seal Access 1 | . . . . . . . 1 . . . . Unauthorized Hacks 13 | . 3 . 4 . . . 1 5 . . . Terminals 10 | . 3 . 4 . . . 1 2 . . . Botnet 4 | . 1 . . . . . 1 2 . . . Skim 6 | . 2 . 4 . . . . . . . . Fabricators 3 | . . . . . . . . 3 . . . Report 1 | . . . . . . . . 1 . . . Liberate 1 | . . . . . . . . 1 . . . Haulers 1 | . . . . . . . . 1 . . . Repair Stations . | . . . . . . . . . . . . Recycling Units . | . . . . . . . . . . . . Scanalyzers . | . . . . . . . . . . . . Garrison Access . | . . . . . . . . . . . . Data Cores Recovered 4 | . 1 . 1 . . . 2 . . . . Used . | . . . . . . . . . . . . Hacking Detections 22 | . 3 . 5 . . . 8 6 . . . Full Trace Events . | . . . . . . . . . . . . Feedback Events . | . . . . . . . . . . . . Feedback Blocked . | . . . . . . . . . . . . Robot Schematics Acquired 5 | . . . . . . . . . . . 5 Robots Built . | . . . . . . . . . . . . Authchips . | . . . . . . . . . . . . Time . | . . . . . . . . . . . . Total Robot Build Rating . | . . . . . . . . . . . . Part Schematics Acquired 9 | . . . . . . . . . . . 9 Parts Built . | . . . . . . . . . . . . Authchips . | . . . . . . . . . . . . Time . | . . . . . . . . . . . . Total Part Build Rating . | . . . . . . . . . . . . Part Studies Acquired 4 | . . . 1 . . . 3 . . . . Parts Repaired . | . . . . . . . . . . . . Time . | . . . . . . . . . . . . Parts Recycled . | . . . . . . . . . . . . Recycled Matter . | . . . . . . . . . . . . Retrieved Matter . | . . . . . . . . . . . . Retrieved Components . | . . . . . . . . . . . . Parts Scanalyzed . | . . . . . . . . . . . . Part Schematics Acquired . | . . . . . . . . . . . . Parts Damaged . | . . . . . . . . . . . . Bothacking | -11 -10 -10 -9 -9 -9 -8 -8 -7 -7 -7 -7 ------------ Run | Yrd Mat Min Mat Min Exi Min Mat Fac Low Low Dat Used RIF Installer . | . . . . . . . . . . . . Robots Hacked . | . . . . . . . . . . . . Non-combat . | . . . . . . . . . . . . Combat . | . . . . . . . . . . . . Robot Hacks Applied . | . . . . . . . . . . . . Relay Couplers Released . | . . . . . . . . . . . . Fabnet Peak Effective % . | . . . . . . . . . . . . Robots Rewired 2 | . . . . . . . . . 2 . . Allies Hacked 1 | . . . . . . . . 1 . . . Hacks Repelled . | . . . . . . . . . . . . Allies | -11 -10 -10 -9 -9 -9 -8 -8 -7 -7 -7 -7 -------- Run | Yrd Mat Min Mat Min Exi Min Mat Fac Low Low Dat Total Allies 8 | . . 3 . . . . . 3 2 . . Largest Group 3 | . . 3 3 . . . . 3 2 . . Highest-Rated Group 48 | . . 40 40 . . . . 48 46 . . Highest-Rated Ally 30 | . . 16 16 . . . . 16 30 . . Total Orders . | . . . . . . . . . . . . Ally Attacks 59 | . . . 53 . . . . . 6 . . Total Damage 601 | . . . 548 . . . . . 53 . . Kills 11 | . . . 11 . . . . . . . . Allies Corrupted . | . . . . . . . . . . . . Allies Melted . | . . . . . . . . . . . . Intel | -11 -10 -10 -9 -9 -9 -8 -8 -7 -7 -7 -7 ------- Run | Yrd Mat Min Mat Min Exi Min Mat Fac Low Low Dat Active Infowar (turns) 4678 | 69 593 . . . . . . 1729 723 1383 181 Sensors 4016 | . . . . . . . . 1729 723 1383 181 Seismic 662 | 69 593 . . . . . . . . . . Robot Analysis Total 154 | . 2 . . . . . 2 . . . 150 Derelict Logs Recovered 7 | . . 2 . 2 . . . . 2 1 . Drone Launches . | . . . . . . . . . . . . Drone Recoveries . | . . . . . . . . . . . . Exploration | -11 -10 -10 -9 -9 -9 -8 -8 -7 -7 -7 -7 ------------- Run | Yrd Mat Min Mat Min Exi Min Mat Fac Low Low Dat Turns Passed 12098 | 167 682 974 1614 857 292 917 1769 2249 987 1398 192 Spaces Moved 6915 | 83 372 544 740 464 170 514 862 1275 702 1102 87 Core 3 | 3 . . . . . . . . . . . Treads 3530 | 80 372 544 740 464 170 514 646 . . . . Legs 3382 | . . . . . . . 216 1275 702 1102 87 Wheels . | . . . . . . . . . . . . Hover . | . . . . . . . . . . . . Flight . | . . . . . . . . . . . . Fastest Speed 50 | 50 160 160 160 170 170 170 130 113 113 121 121 Average Speed 147 | 156 160 160 168 170 170 170 156 139 120 121 121 Slowest Speed 270 | 160 160 160 170 170 170 170 270 200 187 121 121 Overloaded Moves . | . . . . . . . . . . . . Propulsion Burnouts . | . . . . . . . . . . . . Robots Hopped . | . . . . . . . . . . . . Potential Cave-ins . | . . . . . . . . . . . . Cave-ins Triggered . | . . . . . . . . . . . . Exploration Rate (%) 71 | 4 67 97 82 99 40 95 64 46 86 95 77 Regions Visited 11 Branch Regions 7 Pre-discovered Areas 27 | . . . . 2 1 . . . 1 . 23 Known Exits Taken 3 | . . . . . . . . 1 1 1 . Unknown Exits Taken 8 | 1 1 1 1 1 1 1 1 . . . . Scrap Searched 12 | . . 2 . 1 . 2 . . 4 3 . Spaces Dug 32 | . . . . . . . . 16 3 13 . Terrain Destroyed 136 | . 2 . . . . . 20 42 59 13 . Melee 32 | . . . . . . . . 16 3 13 . Projectile . | . . . . . . . . . . . . AOE 104 | . 2 . . . . . 20 26 56 . . Terrain Rammed . | . . . . . . . . . . . . Walls Destroyed . | . . . . . . . . . . . . Machines Disabled . | . . . . . . . . . . . . Actions | -11 -10 -10 -9 -9 -9 -8 -8 -7 -7 -7 -7 --------- Run | Yrd Mat Min Mat Min Exi Min Mat Fac Low Low Dat Total 8103 | 104 414 626 977 497 173 538 1085 1608 795 1141 145 Wait 431 | . . 66 96 1 . . 31 169 9 22 37 Move 6904 | 82 371 543 739 463 169 513 861 1274 701 1101 87 Hop . | . . . . . . . . . . . . Pick Up 50 | 6 7 1 15 . . 1 9 9 2 . . Fast Attach 57 | 6 4 . 5 2 2 2 21 11 4 . . Attach 18 | 1 . 1 4 . . . 5 6 1 . . Detach 8 | . . . 2 . . 1 4 1 . . . Swap 58 | . 2 . 9 1 . 1 9 17 15 2 2 Drop 84 | 1 5 1 20 3 2 3 29 17 3 . . Fire 286 | 8 24 14 84 19 . 9 108 13 7 . . Melee 151 | . . . . . . . 2 91 23 16 19 Ram . | . . . . . . . . . . . . Kick . | . . . . . . . . . . . . Crush 26 | . 1 . 3 8 . 8 6 . . . . Escape Stasis . | . . . . . . . . . . . . Rewire 30 | . . . . . . . . . 30 . . Trap . | . . . . . . . . . . . . Miscellaneous . | . . . . . . . . . . . . Route ------- -11/Scrapyard -10/Materials (discovered 2 exits: *Mat / [*Min]) -10/Mines (discovered 2 exits: *Mat x2) -9/Materials (discovered 5 exits: *Mat x2 / [*Min x2] / [*Sto]) -9/Mines (discovered 3 exits: *Mat x2 / *Exi) -9/Exiles -8/Mines (discovered 2 exits: *Mat x2) -8/Materials (discovered 2 exits: *Fac x2) -7/Factory (discovered 4 exits: *Fac x2 / *Low x2) -7/Lower Caves -7/Lower Caves (discovered 2 exits: *Fac / *Dat) -7/Data Miner (discovered 1 exit: [*Pro]) History --------- Turn | Location | Event 4 | -11/Scrapyard | Discovered new exit (range 15) 168 | -11/Scrapyard | Entered Materials 302 | -10/Materials | Build established: Mutant 360 | -10/Materials | Discovered new exit (range 16) 580 | -10/Materials | Discovered new exit (range 11) 850 | -10/Materials | Entered Mines 1008 | -10/Mines | Assembled infested the area 1189 | -10/Mines | Learned Materials stockpile data 1193 | -10/Mines | Discovered new exit (range 10) 1234 | -10/Mines | Learned Materials stockpile data 1546 | -10/Mines | Assisted by bots powering up and referring to "LRC-V3" 1637 | -10/Mines | Discovered new exit (range 4) 1824 | -10/Mines | Entered Materials 1824 | -9/Materials | Accompanied by 3 allies 1824 | -9/Materials | Evolved 2 slots: Propulsion x1, Utility x1 2109 | -9/Materials | Discovered new exit (range 7) 2454 | -9/Materials | Discovered new exit (range 16) 2508 | -9/Materials | Discovered new exit (range 8) 2878 | -9/Materials | Discovered new exit (range 16) 3401 | -9/Materials | Discovered new exit (range 9) 3438 | -9/Materials | Entered Mines 3651 | -9/Mines | Learned location of Zion (-6) 3651 | -9/Mines | Discovered new exit (range 15) 3810 | -9/Mines | Discovered new exit (range 13) 3984 | -9/Mines | Joined a pair of Derelicts in attacking an 0b10 outpost 4287 | -9/Mines | Deemed a non-threat by the Exiles lab entrance 4288 | -9/Mines | Discovered new exit (range 5) 4295 | -9/Mines | Entered Exiles 4318 | -9/Exiles | Discovered new exit (range 15) 4339 | -9/Exiles | Met 8R-AWN 4364 | -9/Exiles | Met EX-HEX 4446 | -9/Exiles | Met EX-DEC 4587 | -9/Exiles | Entered Mines 4825 | -8/Mines | Discovered new exit (range 15) 5273 | -8/Mines | Discovered new exit (range 5) 5504 | -8/Mines | Entered Materials 5504 | -8/Materials | Evolved 2 slots: Utility x2 5833 | -8/Materials | Discovered new exit (range 5) 6359 | -8/Materials | Build established: Scavenger-Mutant 6522 | -8/Materials | Discovered new exit (range 13) 6630 | -8/Materials | Destroyed 7 combat bots 7273 | -8/Materials | Entered Factory 7273 | -7/Factory | Evolved 2 slots: Propulsion x1, Weapon x1 7732 | -7/Factory | Build established: Mutant 8174 | -7/Factory | Discovered new exit (range 14) 8294 | -7/Factory | Identified exit to Lower Caves 8716 | -7/Factory | Build established: Gladiator 8772 | -7/Factory | Core integrity fell below 50% 9022 | -7/Factory | Build established: Mutant 9138 | -7/Factory | Discovered new exit (range 16) 9522 | -7/Factory | Entered Lower Caves 9996 | -7/Lower Caves | Attracted the attention of an 0b10 outpost 10039 | -7/Lower Caves | Lost 3 parts (2n1u) 10114 | -7/Lower Caves | Attracted the attention of an 0b10 checkpoint 10255 | -7/Lower Caves | Learned Factory trap positions 10364 | -7/Lower Caves | Discovered new exit (range 15) 10370 | -7/Lower Caves | Learned location of Extension (-4) 10422 | -7/Lower Caves | Found DRS Beacon 10440 | -7/Lower Caves | Identified exit to Lower Caves 10509 | -7/Lower Caves | Entered another Lower Caves area 10547 | -7/Lower Caves | Attracted the attention of an 0b10 checkpoint 10547 | -7/Lower Caves | Core integrity fell below 20% 10584 | -7/Lower Caves | Discovered new exit (range 15) 10600 | -7/Lower Caves | Identified exit to Factory 10730 | -7/Lower Caves | Learned Factory stockpile data 10844 | -7/Lower Caves | Discovered new exit (range 10) 10944 | -7/Lower Caves | Identified exit to Data Miner 11278 | -7/Lower Caves | Encountered a Warlord checkpoint 11312 | -7/Lower Caves | Spotted B-75 Beast 11386 | -7/Lower Caves | Lost 3 allies 11907 | -7/Lower Caves | Entered Data Miner 11907 | -7/Data Miner | Discovered new exit (range 6) 11930 | -7/Data Miner | Met Data Miner 11962 | -7/Data Miner | Learned location of Section 7 (-3) 11962 | -7/Data Miner | Acquired the access code to Warlord's prototype stash 11976 | -7/Data Miner | Received God Mode back door access code from Data Miner 12002 | -7/Data Miner | Destroyed Data Miner 12004 | -7/Data Miner | Interfaced with the Data Conduit 12099 | -7/Data Miner | Destroyed by Enhanced Grunt with Neutron Cannon Last Messages --------------- 12085_ Katana+ follow-up attack on Enhanced Grunt. 12088_ Imp. Titanium Leg destroyed. 12090_ Powered Hammer follow-up attack on Enhanced Grunt. 12090_ Enhanced Grunt suffers critical hit (Smash). 12090_ Destroyed Adv. Heat Sink. 12090_ Enhanced Grunt system corrupted by crushing effect. 12090_ Hrd. Medium Armor Plating destroyed. 12092_ Enhanced Grunt Lyr. Medium Armor Plating severed. 12094_ Lgt. Angular Momentum Engine destroyed. 12096_ Powered Hammer follow-up attack on Enhanced Grunt. 12097_ Carbon-fiber Leg+ destroyed. 12098_ Katana+ follow-up attack on Enhanced Grunt. 12099_ Katana+ destroyed. Map ----- +----------------------------------------------------+ | | | | | | | | | | | | | | | | | | | | | | | | | | | | | | | | | | | | | ?????????????????????????????????? | | ?????????????????????????????????? | | ?????????????????????????????????? | | ?????????????????????????????????? | | ?????????????????????????????????? | | ????#################????????????? | | ???##"""g"""""""""""######???????? | | ??##"" g"@""" """"""""######### | | ??#"""]"""""" | | ??#"""" "" g | | ??#""""" | | ??#""""""%! | | ??#""""""" | | ??#""""""" """""""""" | | ???"""""""" """"######## | | ????""""""" """""###??????? | | ?????"""""""" "#####????????? | | ??????######"## "#????????????? | | ???????????#"### "#????????????? | | ???????????#"### "#????????????? | | ???????????#"?# "#????????????? | | ?????????????## "#????????????? | | ?????????????# "#????????????? | | ?????????????### "#????????????? | | ???????????????# "##???????????? | | ??????????????## ""#???????????? | | ?????????????## ""#???????????? | | ??????????##"#"X ""#???????????? | | ??????????""""" "####????????? | | ??????????""""" X"""""????????? | | ??????????##"#"X "##"#????????? | | ???????????#?## X""""#????????? | +----------------------------------------------------+ Best States ------------- Heat Dissipation 65 Energy Generation 18 Energy Capacity 290 Matter Stores 300 Matter Capacity 300 Sight Range 16 Robot Scan Range 15 Terrain Scan Density 10 Armor Coverage 375 Resistance: KI 30 Melee Speed Boost 20 Evasion (%) 55 Core Analysis 6 Recoil Reduction 3 Item Schematics ----------------- Combat Drone Bay | -7/Data Miner | Free Lgt. Regenerative Plating | -7/Data Miner | Free Cld. Aerolev Unit | -7/Data Miner | Free Thermal Defense Suite | -7/Data Miner | Free Imp. Heavy Machine Gun | -7/Data Miner | Free Field Propulsion Drive | -7/Data Miner | Free Point Defense System | -7/Data Miner | Free Adv. Plasma Cannon | -7/Data Miner | Free Adv. Hardlight Generator | -7/Data Miner | Free Robot Schematics ------------------ S-27 Virus | -7/Data Miner | Free L-41 Fighter | -7/Data Miner | Free Y-54 Guardian | -7/Data Miner | Free G-47 Trooper | -7/Data Miner | Free B-48 Gladiator | -7/Data Miner | Free Fabricated ------------ Nothing Repaired ---------- Nothing Studied --------- Lgt. Treads | -9/Materials | Hacked Mni. Grenade Launcher | -8/Materials | Hacked Katana | -8/Materials | Hacked Carbon-fiber Leg | -8/Materials | Hacked Alien Tech Used ----------------- None Achievements -------------- Unlimited Data Challenges ------------ None Game ------ Seed CloakFocalDerivative Manual? 0 Play Time 00:50:08 Cumulative 264.5 hours Start 2026.02.05 @ 16:27:10 End 2026.02.05 @ 17:15:55 Sessions 1 Manual Loads 0 Difficulty Rogue Special Mode None Game No. 264 Rogue 264 Adventurer 0 Explorer 0 Win Type - Total 13 Types 9/1/2/0/0/0/0/0/0/1 Lore% 88 Gallery% 80 Achievement% 63 Wizard Run 0 Options --------- Layout 1 ASCII 0 Keyboard 1 Movement Arrows Keybinds 0 Fullscreen 1 Font 24/Smallcaps Map View 50x40 Zoom Use 0% Tactical HUD 1 Map Filters NONE Filters NONE Steam 1 RUN: be5f249d-b6fd-464f-936d-2cb1a32e20d7